Cogmind - Beta 9.6 @@@ ROGUE MODE // 2020.08.17 @ 13:31:18 Player: NERV Result: Destroyed by G-34 Mercenary with Small Laser Performance ------------- Evolutions (1) 500 Regions Visited (3) 600 Robots Destroyed (15) 75 Value Destroyed (254) 254 Prototype IDs (3) 60 Alien Tech Used (0) 0 Bonus (0) 0 TOTAL SCORE: 1489 Bonus ------- None Cogmind --------- Core Integrity 0/400 Matter 300/300 Energy 99/100 System Corruption 0% Temperature Cool (6) Movement Core (50) Location -9/Storage Parts ------- > --- POWER (1) -------- (None) > --- PROPULSION (2) --- (None) > --- UTILITY (4) ------ Improved Signal Interpreter Improved Terrain Scanner Improved Targeting Computer > --- WEAPON (2) ------- (None) > --- INVENTORY (4) ---- Small Battery (100) ECM Suite Tractor Beam Peak State ------------ > --- POWER ------------ Heavy Ion Engine > --- PROPULSION ------- Compact Wheel Compact Wheel > --- UTILITY ---------- Improved Terrain Scanner Seismic Analyzer Improved Targeting Computer ECM Suite > --- WEAPON ----------- Particle Cannon > --- INVENTORY -------- Small Battery Signal Interpreter Improved Signal Interpreter Tractor Beam [Rating: 13] Favorites ----------- Power Ion Engine Engine Ion Engine Propulsion Wheel Wheel Wheel Utility Improved Terrain Scanner Device Improved Terrain Scanner Storage Large Storage Unit Processor Seismic Analyzer Weapon Small Laser Energy Gun Small Laser Energy Cannon Particle Cannon Launcher Grenade Launcher Special Weapon Mining Laser Build | -11 -10 -9 -9 ------- Run | Scr Mat Mat Sto Slots Evolved 2 | . . 2 . Power . | . . . . Propulsion . | . . . . Utility 2 | . . 2 . Weapon . | . . . . Parts Attached 38 | 9 1 15 13 Power 5 | 2 . . 3 Engine 5 | 2 . . 3 Core . | . . . . Reactor . | . . . . Propulsion 5 | 3 . . 2 Treads . | . . . . Leg . | . . . . Wheel 5 | 3 . . 2 Hover . | . . . . Flight . | . . . . Utility 15 | 2 1 5 7 Device 7 | 1 . 2 4 Storage 4 | 1 1 2 . Processor 4 | . . 1 3 Hackware . | . . . . Protection . | . . . . Artifact . | . . . . Weapon 13 | 2 . 10 1 Energy Gun 7 | 2 . 5 . Energy Cannon 3 | . . 2 1 Ballistic Gun . | . . . . Ballistic Cannon . | . . . . Launcher 2 | . . 2 . Special Weapon 1 | . . 1 . Impact Weapon . | . . . . Slashing Weapon . | . . . . Piercing Weapon . | . . . . Special Melee Weapon . | . . . . Unidentified Prototypes 1 | . . . 1 Parts Lost 16 | . . 10 6 Power 2 | . . 1 1 Propulsion 4 | . . 2 2 Utility 3 | . . 1 2 Weapon 7 | . . 6 1 Highest Loss Streak 10 | . . 10 3 Average Slot Usage (%) 84 | . 100 89 70 Engine 10 | . 14 9 8 Wheel 18 | . 28 18 12 Device 18 | . 14 18 21 Storage 7 | . 14 12 . Processor 12 | . . 11 22 Energy Gun 12 | . 28 14 . Energy Cannon 2 | . . . 6 Naked Turns . | . . . . Heaviest Build 45 | 12 24 45 14 Greatest Support 32 | 26 20 20 32 Greatest Overweight (x) 11 | 1 1 11 3 Average Overweight (x) . | . . 1 . Largest Inventory Capacity 12 | 6 10 12 4 Average Capacity 7 | 4 8 10 4 Most Carried 10 | 6 10 10 4 Average Carried 5 | 3 8 9 3 Final Capacity 10 | 6 10 4 4 Final Carried 10 | 6 10 4 3 Class Distribution -------------------- 86% | Mutant 13% | Scavenger-Mutant Dominant Class ---------------- Mutant | -10/Materials Mutant | -9/Materials Mutant | -9/Storage Resources | -11 -10 -9 -9 ----------- Run | Scr Mat Mat Sto Matter Collected 530 | 280 20 30 200 Remotely . | . . . . Salvage Created 451 | 185 . 47 219 Parts 26 | 16 . . 10 Haulers Intercepted 1 | . . . 1 Recyclers Shooed 3 | 1 . 1 1 Parts Field Recycled . | . . . . Retrieved Matter . | . . . . Parts Self-Destructed . | . . . . Prevented . | . . . . Kills | -11 -10 -9 -9 ------- Run | Scr Mat Mat Sto Combat Hostiles Destroyed 5 | . . 3 2 Guns 1 | . . 1 . Cannons 2 | . . . 2 AOE 2 | . . 2 . Classes Destroyed 5 | 3 . 1 1 Worker 2 | 2 . . . Tunneler 5 | 5 . . . Hauler 1 | . . . 1 Recycler 2 | 1 . . 1 Grunt 5 | . . 3 2 Best Kill Streak 6 | 6 . 2 2 Combat Bots Only 2 | . . 2 1 Max Kills in Single Turn 1 | 1 . 1 1 Gunslinging . | . . . . Exploded 1 | . . 1 . Melee . | . . . . Uniques/NPCs Destroyed . | . . . . Combat | -11 -10 -9 -9 -------- Run | Scr Mat Mat Sto Damage Taken 1302 | . . 805 497 Core 405 | . . 243 162 Absorbed by Shields . | . . . . Core Remaining (%) 100 | 100 100 . . Volleys Fired 63 | 20 2 17 24 Largest 2 | 2 2 2 1 Hottest 100 | 80 80 100 68 Shots Fired 93 | 40 4 25 24 Gun 54 | 40 4 10 . Cannon 32 | . . 8 24 Launcher 4 | . . 4 . Special 3 | . . 3 . Kinetic . | . . . . Thermal 89 | 40 4 21 24 Explosive 4 | . . 4 . Electromagnetic . | . . . . Robot Hit Streak 10 | 10 1 7 9 Robot Miss Streak 2 | 2 2 2 2 Penetration Max . | . . . . Secondary Targets . | . . . . Shots Hit Robots 54 | 25 1 11 17 Core Hits 23 | 9 . 10 4 Critical Hits . | . . . . Critical Kills . | . . . . Critical Parts Destroyed . | . . . . Melee Attacks . | . . . . Impact . | . . . . Slashing . | . . . . Piercing . | . . . . Sneak Attacks . | . . . . Combat Hostiles . | . . . . Follow-up Attacks . | . . . . Damage Inflicted 1129 | 252 12 537 328 Guns 354 | 252 12 90 . Cannons 399 | . . 71 328 Explosions 346 | . . 346 . Melee . | . . . . Ramming 6 | . . 6 . Kinetic . | . . . . Thermal 777 | 252 12 185 328 Explosive 346 | . . 346 . Electromagnetic . | . . . . Impact . | . . . . Slashing . | . . . . Piercing . | . . . . Highest Corruption . | . . . . Average Corruption . | . . . . Corruption Purged . | . . . . Overload Shots . | . . . . Overflow Damage 1 | . . 1 . Projectiles . | . . . . Explosions 1 | . . 1 . Melee . | . . . . Knockbacks . | . . . . Impact . | . . . . Kinetic . | . . . . Secondary . | . . . . Self-Inflicted Damage 3 | . . 3 . Shots . | . . . . Rammed 2 | . . 2 . Targets Rammed 2 | . . 2 . Kicked . | . . . . Crushed . | . . . . Highest Temperature 310 | 108 36 173 310 Average Temperature 72 | 47 20 74 102 Received Heat Transfer 609 | . . 426 183 Siege Activations . | . . . . Robots Corrupted . | . . . . Combat Hostiles . | . . . . Parts Fried . | . . . . Impact Corruptions . | . . . . Robots Melted . | . . . . Combat Hostiles . | . . . . Parts Melted 2 | 1 . 1 . Heat Transferred 1570 | 575 25 378 592 Parts Sabotaged . | . . . . Parts Stolen . | . . . . Parts Stripped . | . . . . Power Chain Reactions . | . . . . Missiles Intercepted . | . . . . Alert | -11 -10 -9 -9 ------- Run | Scr Mat Mat Sto Peak Influence 141 | 40 40 104 141 Average Influence 47 | 21 34 41 76 Maximum Alert Level . | . . . . Low Security (%) 100 | 100 100 100 100 Level 1 . | . . . . Level 2 . | . . . . Level 3 . | . . . . Level 4 . | . . . . Level 5 . | . . . . High Security . | . . . . Max Security . | . . . . Squads Dispatched 4 | . 1 2 1 Investigation 1 | . . 1 . Extermination . | . . . . Reinforcement 3 | . 1 1 1 Assault . | . . . . Garrison . | . . . . Intercept . | . . . . Construction Impeded . | . . . . Haulers Reinforced . | . . . . Stealth | -11 -10 -9 -9 --------- Run | Scr Mat Mat Sto Distress Signals 1 | . 1 . . Communications Jammed . | . . . . Distress Signals . | . . . . Times Spotted 20 | . . 9 11 Peak Tracking Total 4 | . . 4 3 Tactical Retreats 6 | . . 2 4 Traps | -11 -10 -9 -9 ------- Run | Scr Mat Mat Sto Traps Triggered 1 | . . 1 . Indirectly . | . . . . Trap Hack Attempts . | . . . . Triggered . | . . . . Disarmed . | . . . . Reprogrammed . | . . . . Reused . | . . . . Traps Extracted . | . . . . Installed . | . . . . Triggered . | . . . . Machines | -11 -10 -9 -9 ---------- Run | Scr Mat Mat Sto Machines Disabled 2 | . . 1 1 Max in Single Turn 1 | . . 1 1 Machines Sabotaged . | . . . . Garrisons Compromised . | . . . . Overloaded Fab Kills . | . . . . Fab Network Shutdowns . | . . . . Hacking | -11 -10 -9 -9 --------- Run | Scr Mat Mat Sto Machines Accessed 8 | . 2 3 3 Terminals 8 | . 2 3 3 Fabricators . | . . . . Repair Stations . | . . . . Recycling Units . | . . . . Scanalyzers . | . . . . Garrison Access . | . . . . Total Hacks 16 | . 3 7 6 Successful 13 | . 2 6 5 Failed 3 | . 1 1 1 Catastrophic . | . . . . Database Lockouts . | . . . . Manual . | . . . . Terminals 16 | . 3 7 6 Fabricators . | . . . . Repair Stations . | . . . . Recycling Units . | . . . . Scanalyzers . | . . . . Garrison Access . | . . . . Terminal Hacks 13 | . 2 6 5 Record 2 | . . 2 . Prototype ID Bank 1 | . . 1 . Open Door 1 | . . . 1 Emergency Access Points 1 | . 1 . . Alert Level 2 | . . 1 1 Locate Traps 1 | . 1 . . Dispatch Records 1 | . . . 1 Maintenance Status 2 | . . 1 1 Zone Layout 2 | . . 1 1 Fabricator Hacks . | . . . . Repair Station Hacks . | . . . . Recycling Unit Hacks . | . . . . Scanalyzer . | . . . . Garrison Access Hacks . | . . . . Unauthorized Hacks . | . . . . Terminals . | . . . . Fabricators . | . . . . Repair Stations . | . . . . Recycling Units . | . . . . Scanalyzers . | . . . . Garrison Access . | . . . . Data Cores Recovered . | . . . . Used . | . . . . Hacking Detections 4 | . 2 2 . Full Trace Events . | . . . . Feedback Events . | . . . . Feedback Blocked . | . . . . Robot Schematics Acquired . | . . . . Robots Built . | . . . . Matter . | . . . . Time . | . . . . Total Robot Build Rating . | . . . . Part Schematics Acquired . | . . . . Parts Built . | . . . . Matter . | . . . . Time . | . . . . Total Part Build Rating . | . . . . Parts Repaired . | . . . . Time . | . . . . Parts Recycled . | . . . . Recycled Matter . | . . . . Retrieved Matter . | . . . . Retrieved Components . | . . . . Parts Scanalyzed . | . . . . Part Schematics Acquired . | . . . . Parts Damaged . | . . . . Bothacking | -11 -10 -9 -9 ------------ Run | Scr Mat Mat Sto Used RIF Installer . | . . . . Robots Hacked . | . . . . Non-combat . | . . . . Combat . | . . . . Robot Hacks Applied . | . . . . Relay Couplers Released . | . . . . Robots Rewired . | . . . . Allies Hacked . | . . . . Hacks Repelled . | . . . . Allies | -11 -10 -9 -9 -------- Run | Scr Mat Mat Sto Total Allies . | . . . . Largest Group . | . . . . Highest-Rated Group . | . . . . Highest-Rated Ally . | . . . . Total Orders . | . . . . Ally Attacks . | . . . . Total Damage . | . . . . Kills . | . . . . Allies Corrupted . | . . . . Allies Melted . | . . . . Intel | -11 -10 -9 -9 ------- Run | Scr Mat Mat Sto Robot Analysis Total . | . . . . Derelict Logs Recovered . | . . . . Drone Launches . | . . . . Drone Recoveries . | . . . . Exploration | -11 -10 -9 -9 ------------- Run | Scr Mat Mat Sto Turns Passed 891 | 162 195 244 290 Spaces Moved 686 | 96 204 173 213 Core 128 | 15 . 26 87 Treads . | . . . . Legs . | . . . . Wheels 558 | 81 204 147 126 Hover . | . . . . Flight . | . . . . Fastest Speed 50 | 50 80 50 50 Average Speed 91 | 86 87 91 99 Slowest Speed 600 | 100 90 600 200 Overloaded Moves . | . . . . Propulsion Burnouts . | . . . . Robots Hopped . | . . . . Cave-ins Triggered . | . . . . Exploration Rate (%) 24 | 4 41 12 41 Regions Visited 3 Branch Regions 1 Pre-discovered Areas . | . . . . Known Exits Taken . | . . . . Unknown Exits Taken 3 | 1 1 1 . Scrap Searched . | . . . . Spaces Dug . | . . . . Terrain Destroyed 23 | . . 23 . Melee . | . . . . Projectile . | . . . . AOE 23 | . . 23 . Actions | -11 -10 -9 -9 --------- Run | Scr Mat Mat Sto Total 845 | 135 219 225 266 Wait 16 | . . 11 5 Move 683 | 95 203 172 213 Hop . | . . . . Pick Up 27 | 9 8 4 6 Fast Attach 9 | 4 . . 5 Attach 14 | 3 . 6 5 Detach 1 | . . . 1 Swap 15 | 2 1 9 3 Drop 15 | 2 5 4 4 Fire 63 | 20 2 17 24 Melee . | . . . . Ram 2 | . . 2 . Kick . | . . . . Crush . | . . . . Escape Stasis . | . . . . Rewire . | . . . . Trap . | . . . . Miscellaneous . | . . . . Route ------- -11/Scrapyard -10/Materials -9/Materials -9/Storage History --------- Turn | Location | Event 45 | -11/Scrapyard | Discovered new exit (range 15) 163 | -11/Scrapyard | Entered Materials 302 | -10/Materials | Discovered new exit (range 5) 303 | -10/Materials | Build established: Mutant 358 | -10/Materials | Entered another Materials area 358 | -9/Materials | Evolved 2 slots: Utility x2 590 | -9/Materials | Core integrity fell below 50% 594 | -9/Materials | Discovered new exit (range 15) 602 | -9/Materials | Entered Storage 615 | -9/Storage | Lost 10 parts (1p2n1u6w) 835 | -9/Storage | Lost 3 parts (1n1u1w) 877 | -9/Storage | Core integrity fell below 20% 892 | -9/Storage | Destroyed by G-34 Mercenary with Small Laser Last Messages --------------- 00804_ ALERT: Hostiles spotted, dispatching reinforcements to Terminal S007. 00822_ Connecting with Terminal... >>Enumerate(Maintenance) Found 14 registered maintenance bots. 6 Workers 6 Builders 2 Recyclers Downloaded coordinate data. 00841_ Com. Wheel destroyed. 00842_ R-06 Scavenger inserts Prototype Energy Gun into recycling unit. 00845_ R-06 Scavenger inserts Faulty Hvy. Ion Engine into recycling unit. 00858_ Terminal unresponsive. 00864_ Acquired ECM Suite. 00874_ R-06 Scavenger inserts Med. Storage Unit into recycling unit. 00877_ R-06 Scavenger inserts Prototype Energy Gun into recycling unit. 00880_ R-06 Scavenger inserts Aluminum Leg into recycling unit. 00881_ Recycling unit begins recycling process. 00888_ ECM Suite destroyed. 00889_ Hvy. Ion Engine destroyed. Map ----- +----------------------------------------------------+ | ???????????????????????????????????????? | | ???????????????????????????????????????? | | ???????????????????????????????????????? | | ???????????????????????????????????????? | | ???????????????????????????????????????? | | ???????????????????????????????????????? | | ???????????????????????????????????????? | | ???????????????????"???????????????????? | | ???????????????????????????????????????? | | ???????????????????????????????????????? | | ????????????????????????? g ???????????? | | ????????????????????????? #??????????? | | ????????????????????????? +??????????? | | ????????????????????????? #??????????? | | ????????????????????"???? #??????????? | | ???????????????????"????? #??????????? | | ???????? ???????? ?????? #??????????? | | ???????????????????????# #??????????? | | ?#??????????????????????# #??"???????? | | ????????????????######### #??????????? | | ????????????? ??# """ ## #??????????? | | ????????????????# "T" ## #??????????? | | ############# ?# ## #???#???#??? | | ????????????# ?# ## #??????????? | | #####????#### ?# ## #??????????? | | #?##??#""" ?# """ ##@r #??????????? | | "#?##??#"G ?# """ ## #????##????? | | T####??#""" ?# """ ## #??????????? | | "#?????#### ?# ## #??#???????? | | #?######## ?# """ ## ##?????????? | | ### ?# """ ## #???????#??? | | #?# ?# """ ## #??????????? | | #?# ?# ## #??????????? | | ###################+#####gg #?#???????#? | | ^ #??????????? | | Y #??????????? | | ^ #?????????#? | | ######"T"###########"Y"####+#####??????# | | ##???#"""#?????????#"""#??# ###??????? | | #????#####?????????#####??# T#??#????? | | #??#####??????????????????#" "##???????? | | ###### ####???????????????# !#???##??#? | | # #???????????????#! !#????????? | | # """ #????#??????????#! !#????????? | | # """ #???????????????#! !#?????#??? | | # """ #??????#????????#####???#????? | | #""" #??????????????#?????????????? | | #"R #???????#???????#???#???#????? | | #""" #????????????????????????????? | | # #????????????????#???????????? | +----------------------------------------------------+ Best States ------------- Heat Dissipation 28 Energy Generation 14 Energy Capacity 350 Matter Stores 300 Matter Capacity 300 Sight Range 16 Robot Scan Range 13 Terrain Scan Range 16 Terrain Scan Density 60 ECM Strength 1 Evasion (%) 50 Targeting Accuracy 6 Item Schematics ----------------- None Robot Schematics ------------------ None Fabricated ------------ Nothing Alien Tech Used ----------------- None Achievements -------------- None Challenges ------------ None Game ------ Seed DynamicPotentialRouter Manual? 0 Play Time 00:28:17 Cumulative 5.1 hours Start 2020.08.17 @ 12:56:41 End 2020.08.17 @ 13:31:18 Sessions 1 Manual Loads 0 Difficulty Rogue Special Mode None Game No. 6 Rogue 6 Adventurer 0 Explorer 0 Win Type - Total 0 Types 0/0/0/0/0/0/0 Lore% 2 Gallery% 8 Achievement% 8 Wizard Run 0 Options --------- ASCII 0 Keyboard 0 Movement Numpad Keybinds 0 Fullscreen 1 Font 18/SmallcapsGlow Map View 76x50 Tactical HUD 1 Map Filters NONE Filters NONE Steam 1 RUN: 0d0d3ca4-a56c-487a-9c23-3ad81accb357